[Event "SixDays Budapest IM-B June 2024"]
[Site "Budapest"]
[Date "2024.06.07"]
[Round "8.4"]
[White "Izsak, Gyula"]
[Black "Nagarkatte Vedant"]
[Result "1/2-1/2"]
[ECO "A01"]
[WhiteElo "2386"]
[BlackElo "2272"]
[Annotator "RC"]
[PlyCount "116"]
[EventDate "2024.06.01"]
[EventType "tourn"]
[EventCountry "HUN"]
[SourceTitle "playchess.com"]
[Source "ChessBase"]
[SourceQuality "1"]
[TimeControl "5400+30"]

1. b3 {[%emt 0:15:04]} e5 {[%emt 0:00:09]} 2. c4 {[%emt 0:01:45]} Nc6 {[%emt 0:02:24]} 3. Bb2 {[%emt 0:01:06]} Nge7 {[%emt 0:00:12]} 4. e3 {[%emt 0:05:09]} d5 {[%emt 0:00:04]} 5. cxd5 {[%emt 0:00:30]} Nxd5 {[%emt 0:00:44]} 6. a3 {[%emt 0:00:48]} Be6 {[%emt 0:01:10]} 7. Bb5 {[%emt 0:03:25]} Bd6 {[%emt 0:06:02]} 8. Nf3 {[%emt 0:11:27]} f6 {[%emt 0:02:05]} 9. Qc2 {[%emt 0:04:44]} O-O {[%emt 0:06:29]} 10. Bxc6 {[%emt 0:00:11]} bxc6 {[%emt 0:00:04]} 11. d4 {[%emt 0:00:04]} Kh8 {[%emt 0:48:02]} 12. O-O {[%emt 0:01:52]} Qe8 {[%emt 0:03:44]} 13. Nbd2 {[%emt 0:08:16]} Qh5 {[%emt 0:12:44]} 14. Qe4 {[%emt 0:01:23]} f5 {[%emt 0:04:20]} 15. Qh4 {[%emt 0:01:49]} Qxh4 {[%emt 0:01:15]} 16. Nxh4 {[%emt 0:00:05]} e4 {[%emt 0:00:49]} 17. g3 {[%emt 0:00:05]} Rab8 {[%emt 0:00:28]} 18. Rfc1 {[%emt 0:00:51]} Ne7 {[%emt 0:00:35]} 19. b4 {[%emt 0:02:16]} a5 {[%emt 0:00:39]} 20. Bc3 {[%emt 0:00:12]} axb4 {[%emt 0:01:53]} 21. Bxb4 {[%emt 0:00:23]} Bxb4 {[%emt 0:01:11]} 22. axb4 {[%emt 0:00:06]} Rxb4 {[%emt 0:00:37]} 23. Rc2 {[%emt 0:03:00]} Rfb8 {[%emt 0:00:40]} 24. Ng2 {[%emt 0:01:30]} g5 {[%emt 0:00:45]} 25. h4 {[%emt 0:03:14]} h6 {[%emt 0:00:04]} 26. hxg5 {[%emt 0:01:01]} hxg5 {[%emt 0:00:01]} 27. f3 {[%emt 0:02:22]} Rb2 {[%emt 0:06:06]} 28. Rac1 {[%emt 0:00:20]} Rxc2 {[%emt 0:00:05]} 29. Rxc2 {[%emt 0:00:04]} exf3 {[%emt 0:00:36]} 30. Nxf3 {[%emt 0:00:06]} Bd5 {[%emt 0:00:31]} 31. Kf2 {[%emt 0:02:49]} Be4 {[%emt 0:00:49]} 32. Ra2 {[%emt 0:00:31]} g4 {[%emt 0:00:32]} 33. Nd2 {[%emt 0:02:00]} Bxg2 {[%emt 0:00:29]} 34. Kxg2 {[%emt 0:00:05]} Nd5 {[%emt 0:00:16]} 35. e4 {[%emt 0:01:46]} fxe4 {[%emt 0:00:37]} 36. Nxe4 {[%emt 0:00:25]} Rb4 {[%emt 0:00:18]} 37. Rd2 {[%emt 0:00:48]} Kg7 {[%emt 0:00:14]} 38. Kf2 {[%emt 0:00:48]} Rb3 {[%emt 0:00:18]} 39. Kg1 {[%emt 0:04:20]} Re3 {[%emt 0:00:33]} 40. Nf2 {[%emt 0:00:23]} Re1+ {[%emt 0:01:12]} 41. Kh2 {[%emt 0:00:46]} Ne3 {[%emt 0:00:08]} 42. Rd3 {[%emt 0:00:43]} Nf1+ {[%emt 0:00:12]} 43. Kg2 {[%emt 0:00:11]} Ne3+ {[%emt 0:00:01]} 44. Kh2 {[%emt 0:00:07]} Re2 {[%emt 0:01:18]} 45. Kg1 {[%emt 0:00:10]} Re1+ {[%emt 0:00:01]} 46. Kh2 {[%emt 0:00:07]} Kf7 {[%emt 0:01:24]} 47. Rc3 {[%emt 0:01:25]} Nf1+ {[%emt 0:00:18]} 48. Kg2 {[%emt 0:00:08]} Ne3+ {[%emt 0:00:01]} 49. Kh2 {[%emt 0:00:20]} Re2 {[%emt 0:01:12]} 50. Kg1 {[%emt 0:00:26]} Re1+ {[%emt 0:00:03]} 51. Kh2 {[%emt 0:00:06]} Rf1 {[%emt 0:01:00]} 52. Rxe3 {[%emt 0:00:38]} Rxf2+ {[%emt 0:00:01]} 53. Kg1 {[%emt 0:00:07]} Rf6 {[%emt 0:00:43]} 54. Re4 {[%emt 0:00:13]} Rg6 {[%emt 0:00:01]} 55. Kf2 {[%emt 0:00:20]} Rf6+ {[%emt 0:01:12]} 56. Kg2 {[%emt 0:00:12]} Rg6 {[%emt 0:00:04]} 57. Kf2 {[%emt 0:00:05]} Rf6+ {[%emt 0:00:15]} 58. Kg2 {[%emt 0:00:05]} Rg6 {[%emt 0:00:46]} 1/2-1/2

[Event "SixDays Budapest IM-B June 2024"]
[Site "Budapest"]
[Date "2024.06.07"]
[Round "8.5"]
[White "Varga, Csaba Zoltan"]
[Black "Advaitt Srikant Koduri"]
[Result "1-0"]
[ECO "A45"]
[WhiteElo "2157"]
[BlackElo "2066"]
[Annotator "RC"]
[PlyCount "113"]
[EventDate "2024.06.01"]
[EventType "tourn"]
[EventCountry "HUN"]
[SourceTitle "playchess.com"]
[Source "ChessBase"]
[SourceQuality "1"]
[TimeControl "5400+30"]

1. h4 {[%emt 0:01:04]} d5 {[%emt 0:01:42]} 2. d4 {[%emt 0:00:04]} Nf6 {[%emt 0:00:18]} 3. Bg5 {[%emt 0:00:06]} Ne4 {[%emt 0:00:55]} 4. Nd2 {[%emt 0:00:10]} Nxg5 {[%emt 0:05:40]} 5. hxg5 {[%emt 0:00:05]} Bf5 {[%emt 0:00:35]} 6. e3 {[%emt 0:00:31]} Qd6 {[%emt 0:16:38]} 7. Bd3 {[%emt 0:00:48]} Bxd3 {[%emt 0:01:05]} 8. cxd3 {[%emt 0:00:05]} Nd7 {[%emt 0:02:25]} 9. Qb3 {[%emt 0:00:22]} O-O-O {[%emt 0:01:29]} 10. f4 {[%emt 0:00:22]} f6 {[%emt 0:14:32]} 11. g6 {[%emt 0:02:13]} e5 {[%emt 0:01:37]} 12. Rxh7 {[%emt 0:00:32]} Rxh7 {[%emt 0:02:05]} 13. gxh7 {[%emt 0:00:06]} Be7 {[%emt 0:00:06]} 14. Ne2 {[%emt 0:01:04]} Rh8 {[%emt 0:02:54]} 15. Ne4 {[%emt 0:01:32]} Qb4+ {[%emt 0:03:48]} 16. N4c3 {[%emt 0:00:14]} Rxh7 {[%emt 0:02:40]} 17. Kf2 {[%emt 0:00:25]} c6 {[%emt 0:02:58]} 18. Nxd5 {[%emt 0:01:04]} cxd5 {[%emt 0:03:23]} 19. Rc1+ {[%emt 0:01:26]} Kd8 {[%emt 0:04:31]} 20. Qxd5 {[%emt 0:00:07]} Rh8 {[%emt 0:02:35]} 21. Kf3 {[%emt 0:04:05]} g5 {[%emt 0:06:02]} 22. Ng3 {[%emt 0:12:02]} Qd2 {[%emt 0:08:54]} 23. Qc4 {[%emt 0:00:22]} Ke8 {[%emt 0:05:01]} 24. Nf5 {[%emt 0:02:25]} g4+ {[%emt 0:08:31]} 25. Kg3 {[%emt 0:00:07]} Qe2 {[%emt 0:00:30]} 26. Qd5 {[%emt 0:03:40]} exf4+ {[%emt 0:00:45]} 27. Kxf4 {[%emt 0:00:25]} Qf2+ {[%emt 0:00:17]} 28. Kxg4 {[%emt 0:00:07]} Rh4+ {[%emt 0:00:22]} 29. Nxh4 {[%emt 0:00:15]} f5+ {[%emt 0:00:03]} 30. Qxf5 {[%emt 0:00:33]} Nf6+ {[%emt 0:00:13]} 31. Kh3 {[%emt 0:01:12]} Qxe3+ {[%emt 0:00:05]} 32. Nf3 {[%emt 0:03:18]} Qxc1 {[%emt 0:00:28]} 33. Qb5+ {[%emt 0:01:08]} Kf8 {[%emt 0:01:17]} 34. Qf5 {[%emt 0:03:06]} Qh6+ {[%emt 0:01:13]} 35. Kg3 {[%emt 0:00:05]} Qe3 {[%emt 0:00:15]} 36. Qc8+ {[%emt 0:01:51]} Kg7 {[%emt 0:00:18]} 37. Qxb7 {[%emt 0:00:29]} Nh5+ {[%emt 0:00:11]} 38. Kh2 {[%emt 0:01:06]} Qf4+ {[%emt 0:00:07]} 39. g3 {[%emt 0:02:00]} Qxg3+ {[%emt 0:01:02]} 40. Kh1 {[%emt 0:00:05]} Qh3+ {[%emt 0:01:24]} 41. Kg1 {[%emt 0:00:10]} Qe6 {[%emt 0:00:35]} 42. Ne5 {[%emt 0:00:55]} Nf4 {[%emt 0:00:44]} 43. Kf2 {[%emt 0:01:11]} Nd5 {[%emt 0:00:58]} 44. Ke2 {[%emt 0:04:22]} Kh6 {[%emt 0:00:20]} 45. Qxa7 {[%emt 0:01:20]} Bf6 {[%emt 0:00:40]} 46. Qf7 {[%emt 0:00:50]} Nf4+ 47. Ke3 {[%emt 0:01:11]} Ng2+ {[%emt 0:01:12]} 48. Ke4 {[%emt 0:00:27]} Qxf7 {[%emt 0:00:14]} 49. Nxf7+ {[%emt 0:00:05]} Kg6 {[%emt 0:00:05]} 50. Ne5+ {[%emt 0:00:40]} Kg7 {[%emt 0:00:30]} 51. a4 {[%emt 0:00:29]} Bd8 {[%emt 0:00:56]} 52. b4 {[%emt 0:01:01]} Ne1 {[%emt 0:00:25]} 53. Nc6 {[%emt 0:00:04]} Bc7 {[%emt 0:00:04]} 54. a5 {[%emt 0:00:08]} Nc2 {[%emt 0:00:10]} 55. b5 {[%emt 0:00:09]} Na3 {[%emt 0:00:20]} 56. b6 {[%emt 0:00:07]} Bd6 {[%emt 0:00:03]} 57. a6 {[%emt 0:00:11]} 1-0

[Event "SixDays Budapest IM-B June 2024"]
[Site "Budapest"]
[Date "2024.06.08"]
[Round "9.1"]
[White "Advaitt Srikant Koduri"]
[Black "Horvath, David"]
[Result "0-1"]
[ECO "A45"]
[WhiteElo "2066"]
[BlackElo "2313"]
[Annotator "RC"]
[PlyCount "46"]
[EventDate "2024.06.01"]
[EventType "tourn"]
[EventCountry "HUN"]
[SourceTitle "playchess.com"]
[Source "ChessBase"]
[SourceQuality "1"]
[TimeControl "5400+30"]

1. d4 {[%emt 0:00:04]} Nf6 {[%emt 0:00:17]} 2. Bf4 {[%emt 0:00:36]} c5 {[%emt 0:07:09]} 3. c3 {[%emt 0:00:09]} cxd4 {[%emt 0:02:51]} 4. cxd4 {[%emt 0:00:43]} Qb6 {[%emt 0:00:06]} 5. Qc2 {[%emt 0:11:27]} Nc6 {[%emt 0:01:20]} 6. e3 {[%emt 0:00:18]} d6 {[%emt 0:09:42]} 7. Nc3 {[%emt 0:01:10]} Bf5 {[%emt 0:28:20]} 8. Qb3 {[%emt 0:23:45]} Qxb3 {[%emt 0:11:05]} 9. axb3 {[%emt 0:00:14]} e5 {[%emt 0:00:07]} 10. dxe5 {[%emt 0:00:58]} dxe5 {[%emt 0:00:08]} 11. Bg3 {[%emt 0:00:35]} Ne4 {[%emt 0:05:06]} 12. Bb5 {[%emt 0:04:29]} f6 {[%emt 0:02:45]} 13. Nf3 {[%emt 0:08:13]} Bb4 {[%emt 0:04:57]} 14. Nd2 {[%emt 0:09:13]} Nxc3 {[%emt 0:06:00]} 15. bxc3 {[%emt 0:00:39]} Bxc3 {[%emt 0:00:04]} 16. Bxc6+ {[%emt 0:00:49]} bxc6 {[%emt 0:00:12]} 17. Rc1 {[%emt 0:00:05]} Bb4 {[%emt 0:03:49]} 18. Ke2 {[%emt 0:05:51]} O-O-O {[%emt 0:01:14]} 19. Rhd1 {[%emt 0:01:37]} Bd3+ {[%emt 0:02:06]} 20. Kf3 {[%emt 0:02:05]} Kb7 {[%emt 0:05:40]} 21. Ne4 {[%emt 0:07:13]} Rd5 {[%emt 0:00:13]} 22. h4 {[%emt 0:09:43]} Rhd8 {[%emt 0:01:01]} 23. Rh1 {[%emt 0:00:35]} f5 {[%emt 0:01:02]} 0-1

[Event "SixDays Budapest IM-B June 2024"]
[Site "Budapest"]
[Date "2024.06.08"]
[Round "9.2"]
[White "Nagarkatte Vedant"]
[Black "Varga, Csaba Zoltan"]
[Result "1-0"]
[ECO "C41"]
[WhiteElo "2272"]
[BlackElo "2157"]
[Annotator "RC"]
[PlyCount "69"]
[EventDate "2024.06.01"]
[EventType "tourn"]
[EventCountry "HUN"]
[SourceTitle "playchess.com"]
[Source "ChessBase"]
[SourceQuality "1"]
[TimeControl "5400+30"]

1. e4 {[%emt 0:00:01]} d6 {[%emt 0:00:03]} 2. d4 {[%emt 0:00:04]} Nf6 {[%emt 0:00:04]} 3. Nc3 {[%emt 0:00:03]} e5 {[%emt 0:00:04]} 4. Nf3 {[%emt 0:00:03]} Nbd7 {[%emt 0:00:04]} 5. h3 {[%emt 0:00:05]} Be7 {[%emt 0:00:04]} 6. Be3 {[%emt 0:00:04]} c6 {[%emt 0:00:03]} 7. g4 {[%emt 0:00:03]} h6 {[%emt 0:00:06]} 8. Rg1 {[%emt 0:00:06]} b5 {[%emt 0:01:06]} 9. a3 {[%emt 0:00:51]} a6 {[%emt 0:00:59]} 10. h4 {[%emt 0:03:07]} exd4 {[%emt 0:03:41]} 11. Nxd4 {[%emt 0:04:17]} Ne5 {[%emt 0:00:14]} 12. Be2 {[%emt 0:08:13]} Nh7 {[%emt 0:01:14]} 13. Qd2 {[%emt 0:10:28]} Bxh4 {[%emt 0:03:39]} 14. O-O-O {[%emt 0:00:31]} g6 {[%emt 0:04:09]} 15. f4 {[%emt 0:02:50]} c5 {[%emt 0:00:44]} 16. fxe5 {[%emt 0:03:13]} cxd4 {[%emt 0:00:06]} 17. Qxd4 {[%emt 0:00:08]} O-O {[%emt 0:02:36]} 18. exd6 {[%emt 0:01:11]} Bf6 {[%emt 0:00:05]} 19. e5 {[%emt 0:01:23]} Bg7 {[%emt 0:00:32]} 20. d7 {[%emt 0:08:29]} Bb7 {[%emt 0:00:05]} 21. Qd6 {[%emt 0:02:37]} Qh4 {[%emt 0:04:26]} 22. Bb6 {[%emt 0:08:22]} Rfd8 {[%emt 0:00:04]} 23. Bxd8 {[%emt 0:00:51]} Rxd8 {[%emt 0:00:05]} 24. e6 {[%emt 0:01:00]} Qg5+ {[%emt 0:02:05]} 25. Kb1 {[%emt 0:00:27]} fxe6 {[%emt 0:00:18]} 26. Qxe6+ {[%emt 0:00:16]} Kh8 {[%emt 0:00:04]} 27. Ne4 {[%emt 0:13:44]} Qe5 {[%emt 0:00:05]} 28. Qxe5 {[%emt 0:00:08]} Bxe5 {[%emt 0:00:05]} 29. Nc5 {[%emt 0:00:22]} Bc6 {[%emt 0:00:04]} 30. Rd3 {[%emt 0:01:10]} Nf8 {[%emt 0:00:34]} 31. Rf1 {[%emt 0:03:52]} Kg8 {[%emt 0:00:33]} 32. Bf3 {[%emt 0:01:08]} Bxf3 {[%emt 0:00:06]} 33. Rfxf3 {[%emt 0:00:27]} Bc7 {[%emt 0:00:07]} 34. Nb7 {[%emt 0:00:11]} Rb8 {[%emt 0:00:12]} 35. d8=Q {[%emt 0:00:10]} 1-0

[Event "SixDays Budapest IM-B June 2024"]
[Site "Budapest"]
[Date "2024.06.08"]
[Round "9.3"]
[White "Nanditha V"]
[Black "Izsak, Gyula"]
[Result "0-1"]
[ECO "B40"]
[WhiteElo "1852"]
[BlackElo "2386"]
[Annotator "RC"]
[PlyCount "108"]
[EventDate "2024.06.01"]
[EventType "tourn"]
[EventCountry "HUN"]
[SourceTitle "playchess.com"]
[Source "ChessBase"]
[SourceQuality "1"]
[TimeControl "5400+30"]

1. e4 {[%emt 0:04:43]} c5 {[%emt 0:10:52]} 2. Nf3 {[%emt 0:00:44]} e6 {[%emt 0:00:21]} 3. g3 {[%emt 0:00:12]} b6 {[%emt 0:01:31]} 4. Bg2 {[%emt 0:00:16]} Bb7 {[%emt 0:00:09]} 5. Qe2 {[%emt 0:00:21]} d6 {[%emt 0:02:21]} 6. O-O {[%emt 0:00:27]} Nf6 {[%emt 0:00:59]} 7. d3 {[%emt 0:00:06]} Be7 {[%emt 0:01:23]} 8. Nbd2 {[%emt 0:00:22]} O-O {[%emt 0:01:13]} 9. b3 {[%emt 0:00:18]} Nfd7 {[%emt 0:07:08]} 10. Ne1 {[%emt 0:01:23]} Bf6 {[%emt 0:05:28]} 11. Rb1 {[%emt 0:00:11]} Nc6 {[%emt 0:01:50]} 12. Nc4 {[%emt 0:02:37]} Qc7 {[%emt 0:05:34]} 13. Bb2 {[%emt 0:02:54]} Bxb2 {[%emt 0:00:49]} 14. Rxb2 {[%emt 0:02:09]} Nd4 {[%emt 0:00:55]} 15. Qd1 {[%emt 0:00:46]} d5 {[%emt 0:01:48]} 16. exd5 {[%emt 0:02:14]} Bxd5 {[%emt 0:00:41]} 17. c3 {[%emt 0:00:59]} Bxg2 {[%emt 0:00:48]} 18. Nxg2 {[%emt 0:00:23]} Nc6 {[%emt 0:00:42]} 19. f4 {[%emt 0:00:27]} Rad8 {[%emt 0:00:29]} 20. g4 {[%emt 0:00:50]} Nf6 {[%emt 0:01:03]} 21. h4 {[%emt 0:01:01]} Nd5 {[%emt 0:02:28]} 22. Qe1 {[%emt 0:07:44]} b5 {[%emt 0:03:02]} 23. Nce3 {[%emt 0:02:08]} b4 {[%emt 0:03:51]} 24. c4 {[%emt 0:01:23]} Nxe3 {[%emt 0:00:07]} 25. Qxe3 {[%emt 0:00:39]} Rd4 {[%emt 0:00:08]} 26. g5 {[%emt 0:01:37]} Ne7 {[%emt 0:01:05]} 27. h5 {[%emt 0:00:49]} Nf5 {[%emt 0:00:14]} 28. Qh3 {[%emt 0:00:38]} Rfd8 {[%emt 0:03:42]} 29. Rf3 {[%emt 0:02:32]} a5 {[%emt 0:00:35]} 30. Rd2 {[%emt 0:03:50]} Qd7 {[%emt 0:02:29]} 31. Kh2 {[%emt 0:04:07]} a4 {[%emt 0:00:43]} 32. bxa4 {[%emt 0:01:07]} Qxa4 {[%emt 0:00:16]} 33. g6 {[%emt 0:01:06]} fxg6 {[%emt 0:03:27]} 34. hxg6 {[%emt 0:00:14]} hxg6 {[%emt 0:00:15]} 35. Nh4 {[%emt 0:00:22]} Kf7 {[%emt 0:03:56]} 36. Nxf5 {[%emt 0:05:40]} exf5 {[%emt 0:00:08]} 37. Qg2 {[%emt 0:00:32]} Qd7 {[%emt 0:03:16]} 38. Qg5 {[%emt 0:05:29]} Qe6 {[%emt 0:01:29]} 39. Rh3 {[%emt 0:00:42]} Qd6 {[%emt 0:01:49]} 40. Rf3 {[%emt 0:01:29]} Rxc4 {[%emt 0:04:43]} 41. Re2 {[%emt 0:03:21]} Rd4 {[%emt 0:01:17]} 42. Kg1 {[%emt 0:01:03]} Re8 {[%emt 0:04:56]} 43. Rg2 {[%emt 0:02:59]} Re1+ {[%emt 0:01:07]} 44. Kh2 {[%emt 0:00:20]} Re6 {[%emt 0:00:44]} 45. Qg3 {[%emt 0:00:43]} Re8 {[%emt 0:02:45]} 46. Rc2 {[%emt 0:01:33]} Rd8 {[%emt 0:00:23]} 47. Rg2 {[%emt 0:00:42]} Kg8 {[%emt 0:01:36]} 48. Kh1 {[%emt 0:02:13]} Rxd3 {[%emt 0:01:12]} 49. Rxd3 {[%emt 0:00:17]} Qxd3 {[%emt 0:00:06]} 50. Qxg6 {[%emt 0:00:29]} Qf1+ {[%emt 0:00:11]} 51. Kh2 {[%emt 0:00:20]} Qxf4+ {[%emt 0:00:16]} 52. Rg3 {[%emt 0:00:34]} Qh4+ {[%emt 0:00:45]} 53. Kg1 {[%emt 0:01:05]} Rd1+ {[%emt 0:00:14]} 54. Kf2 {[%emt 0:00:29]} Qf4+ {[%emt 0:00:23]} 0-1

[Event "SixDays Budapest IM-B June 2024"]
[Site "Budapest"]
[Date "2024.06.08"]
[Round "9.4"]
[White "Bashylina, Luisa"]
[Black "Danilenko, Dmitriy"]
[Result "1/2-1/2"]
[ECO "D10"]
[WhiteElo "2250"]
[BlackElo "2403"]
[Annotator "RC"]
[PlyCount "53"]
[EventDate "2024.06.01"]
[EventType "tourn"]
[EventCountry "HUN"]
[SourceTitle "playchess.com"]
[Source "ChessBase"]
[SourceQuality "1"]
[TimeControl "5400+30"]

1. d4 {[%emt 0:00:04]} d5 {[%emt 0:00:16]} 2. c4 {[%emt 0:00:05]} c6 {[%emt 0:00:08]} 3. cxd5 {[%emt 0:00:08]} cxd5 {[%emt 0:00:08]} 4. Nc3 {[%emt 0:00:06]} Nf6 {[%emt 0:01:06]} 5. f3 {[%emt 0:00:05]} Qb6 {[%emt 0:00:24]} 6. e4 {[%emt 0:00:14]} dxe4 {[%emt 0:00:49]} 7. fxe4 {[%emt 0:00:07]} e5 {[%emt 0:00:22]} 8. dxe5 {[%emt 0:00:06]} Ng4 {[%emt 0:01:04]} 9. Qe2 {[%emt 0:00:11]} Nc6 {[%emt 0:06:18]} 10. Nf3 {[%emt 0:08:58]} Bb4 {[%emt 0:02:37]} 11. Bd2 {[%emt 0:07:58]} O-O {[%emt 0:11:37]} 12. Nd5 {[%emt 0:07:50]} Qc5 {[%emt 0:07:44]} 13. h3 {[%emt 0:15:05]} Bxd2+ {[%emt 0:02:59]} 14. Qxd2 {[%emt 0:01:15]} Ngxe5 {[%emt 0:00:36]} 15. Nxe5 {[%emt 0:01:33]} Nxe5 {[%emt 0:00:05]} 16. Rc1 {[%emt 0:00:45]} Qd6 {[%emt 0:00:05]} 17. Be2 {[%emt 0:04:29]} Qd8 {[%emt 0:30:54]} 18. O-O {[%emt 0:04:35]} Be6 {[%emt 0:00:37]} 19. Rfd1 {[%emt 0:04:53]} Bxd5 {[%emt 0:06:19]} 20. exd5 {[%emt 0:01:12]} Qd6 {[%emt 0:00:39]} 21. Qc3 {[%emt 0:07:05]} Rfd8 {[%emt 0:03:51]} 22. Kh1 {[%emt 0:00:35]} Kf8 {[%emt 0:05:31]} 23. Qb3 {[%emt 0:11:59]} Rd7 {[%emt 0:01:01]} 24. Bb5 {[%emt 0:01:00]} Rdd8 {[%emt 0:00:47]} 25. Be2 {[%emt 0:07:33]} Rd7 {[%emt 0:00:08]} 26. Bb5 {[%emt 0:03:17]} Rdd8 {[%emt 0:00:01]} 27. Be2 {[%emt 0:00:51]} 1/2-1/2